bitfinex/quotes_BTCUSD_20250830
["timestamp","ask_amount","ask_price","bid_price","bid_amount"]
[1756517512910,1.69089159,108260.0,108250.0,4.753e-05]
[1756517513316,1.84697159,108260.0,108250.0,4.753e-05]
[1756517513554,1.82972297,108260.0,108250.0,4.753e-05]
[1756517513759,1.84693414,108260.0,108250.0,4.753e-05]
[1756517514966,1.88904751,108260.0,108250.0,4.753e-05]
[1756517519293,1.9153404,108260.0,108250.0,4.753e-05]
[1756517519493,1.9152604,108260.0,108250.0,4.753e-05]
[1756517523066,1.91528207,108260.0,108250.0,4.753e-05]
[1756517523501,1.91238981,108260.0,108250.0,4.753e-05]
[1756517523657,1.91528207,108260.0,108250.0,4.753e-05]
[1756517523855,1.91528455,108260.0,108250.0,4.753e-05]
[1756517524493,0.52479164,108230.0,108220.0,0.0754643]
[1756517524726,1.54501528,108230.0,108220.0,0.0754643]
[1756517524930,1.54501528,108230.0,108220.0,0.0775343]
[1756517525271,1.65269614,108230.0,108220.0,0.00227]
[1756517526021,1.65591614,108230.0,108220.0,0.0002]
[1756517526423,1.65591614,108230.0,108220.0,0.0022]
[1756517526615,1.71292182,108230.0,108220.0,0.0022]
[1756517526816,1.71292182,108230.0,108220.0,0.0002]
[1756517527002,1.71292182,108230.0,108220.0,0.00227]
[1756517527612,1.71292182,108230.0,108220.0,0.0002]
[1756517528107,1.71392182,108230.0,108220.0,0.0002]
[1756517528511,1.71392182,108230.0,108220.0,0.00227]
[1756517533508,1.70455263,108230.0,108220.0,0.00227]
[1756517533717,1.7139085,108230.0,108220.0,0.00227]
[1756517534164,1.5581085,108230.0,108220.0,0.00227]
[1756517534490,1.7139085,108230.0,108220.0,0.00227]
[1756517536602,1.7139085,108230.0,108220.0,0.0002]
[1756517537126,1.62561218,108230.0,108220.0,0.00227]
[1756517538713,1.38969811,108230.0,108220.0,0.00227]
[1756517538958,1.57448975,108230.0,108220.0,0.00227]
[1756517540759,1.57448341,108230.0,108220.0,0.00227]
[1756517540982,1.57448341,108230.0,108220.0,0.0002]
[1756517543818,1.65620672,108230.0,108220.0,0.0002]
[1756517544022,1.64974367,108230.0,108220.0,0.0002]
[1756517544248,1.65620751,108230.0,108220.0,0.0002]
[1756517547624,1.65331472,108230.0,108220.0,0.0002]
[1756517547819,1.65620751,108230.0,108220.0,0.0002]
[1756517552187,1.65620388,108230.0,108220.0,0.0002]
[1756517554688,1.64974234,108230.0,108220.0,0.0002]
[1756517554882,1.65624284,108230.0,108220.0,0.0002]
[1756517555427,2.08941646,108230.0,108220.0,0.0002]
[1756517556858,2.00769315,108230.0,108220.0,0.0002]
[1756517558755,2.00769879,108230.0,108220.0,0.0002]
[1756517565254,1.85189849,108230.0,108220.0,0.0002]
[1756517565442,2.00755279,108230.0,108220.0,0.0002]
[1756517565839,1.98738658,108230.0,108220.0,0.0002]
[1756517566092,1.8519125,108230.0,108220.0,0.0002]
[1756517566306,2.028968,108230.0,108220.0,0.0002]
[1756517566512,2.11726432,108230.0,108220.0,0.0002]
[1756517567927,1.96162432,108230.0,108220.0,0.0002]
[1756517568135,2.11726432,108230.0,108220.0,0.0002]
[1756517569153,2.11726359,108230.0,108220.0,0.0002]
[1756517570428,2.09584798,108230.0,108220.0,0.0002]
[1756517571988,1.94020798,108230.0,108220.0,0.0002]
[1756517572186,2.09580798,108230.0,108220.0,0.0002]
[1756517575752,1.12728167,108230.0,108220.0,0.0022]
[1756517575979,1.07460623,108230.0,108220.0,0.0052]
[1756517576200,1.06812867,108230.0,108220.0,0.0052]
[1756517576429,1.05085648,108230.0,108220.0,0.0075101]
[1756517576883,1.20645648,108230.0,108220.0,0.0075101]
[1756517577150,1.05085648,108230.0,108220.0,0.0075101]
[1756517577361,0.34139164,108230.0,108220.0,0.0075101]
[1756517577576,1.11372785,108230.0,108220.0,0.0075101]
[1756517578011,1.11272785,108230.0,108220.0,0.0075101]
[1756517578229,1.11372785,108230.0,108220.0,0.0075101]
[1756517578686,1.11272785,108230.0,108220.0,0.0075101]
[1756517578892,1.11272785,108230.0,108220.0,0.0052]
[1756517579109,1.11272785,108230.0,108220.0,0.0085101]
[1756517580396,1.11272785,108230.0,108220.0,0.0062]
[1756517582011,0.92793621,108230.0,108220.0,0.19331882]
[1756517582225,0.92793621,108230.0,108220.0,0.22882306]
[1756517582442,0.77233621,108230.0,108220.0,0.22882306]
[1756517582645,0.92793621,108230.0,108220.0,0.22882306]
[1756517584125,0.77233621,108230.0,108220.0,0.22882306]
[1756517584334,0.43233621,108230.0,108220.0,0.31711938]
[1756517584979,1.11272538,108240.0,108230.0,0.18479164]
[1756517585185,0.77233621,108240.0,108230.0,0.23838125]
[1756517585390,0.92793621,108240.0,108230.0,0.32667757]
[1756517585601,1.11271078,108240.0,108230.0,0.14188593]
[1756517586228,1.54504699,108240.0,108230.0,0.14188593]
[1756517588329,0.68037457,108240.0,108230.0,0.32667757]
[1756517588574,1.54504699,108240.0,108230.0,0.32667757]
[1756517589133,1.20467242,108240.0,108230.0,0.32667757]
[1756517590046,0.77233621,108240.0,108230.0,0.32667757]
[1756517590552,1.20467242,108240.0,108230.0,0.32667757]
[1756517590761,0.43233621,108240.0,108230.0,0.32667757]
[1756517591197,0.43233621,108240.0,108230.0,0.48223757]
[1756517591407,0.15556,108250.0,108240.0,0.18476178]
[1756517591624,0.15556,108250.0,108240.0,0.22457612]
[1756517592094,0.15556,108250.0,108240.0,0.22757612]
[1756517592541,0.52482822,108260.0,108250.0,0.1847575]
[1756517592771,1.11272443,108260.0,108250.0,0.1847575]
[1756517592986,1.11272443,108260.0,108250.0,0.1897575]
[1756517593201,1.11487443,108260.0,108250.0,0.23534711]
[1756517593406,1.11804443,108260.0,108250.0,0.05058961]
[1756517593627,0.68570822,108260.0,108250.0,0.05289907]
[1756517593829,1.11487443,108260.0,108250.0,0.05289907]
[1756517594032,1.11804443,108260.0,108250.0,0.05289907]
[1756517596930,1.11804443,108260.0,108250.0,0.23765657]
[1756517597179,1.11487443,108260.0,108250.0,0.23834711]
[1756517597360,1.54672132,108260.0,108250.0,0.23834711]
[1756517597536,1.36198089,108260.0,108250.0,0.23834711]
[1756517597745,1.35979089,108260.0,108250.0,0.23834711]
[1756517597946,1.35979089,108260.0,108250.0,0.23934711]
[1756517598151,1.20427089,108260.0,108250.0,0.23934711]
[1756517600430,0.86427089,108260.0,108250.0,0.23934711]
[1756517600649,0.86427089,108260.0,108250.0,0.48316343]
[1756517601063,0.86427089,108260.0,108250.0,0.48216343]
[1756517601251,0.86427089,108260.0,108250.0,0.48416343]
[1756517602515,0.86427089,108260.0,108250.0,0.51192943]
[1756517603299,0.86427089,108260.0,108250.0,0.35640943]
[1756517603501,0.86427089,108260.0,108250.0,0.51192943]
[1756517605842,0.86427089,108260.0,108250.0,0.35640943]
[1756517606066,0.86427089,108260.0,108250.0,0.51192943]
[1756517607668,0.86427089,108260.0,108250.0,0.51188943]
[1756517608470,0.86628089,108260.0,108250.0,0.35140943]
[1756517608676,1.48609287,108260.0,108250.0,0.32213193]
[1756517608891,1.64157287,108260.0,108250.0,0.29436593]
[1756517609697,1.64157287,108260.0,108250.0,0.13888593]
[1756517609952,1.64157287,108260.0,108250.0,0.29436593]
[1756517611396,0.77744551,108260.0,108250.0,0.29436593]
[1756517611810,0.43722508,108260.0,108250.0,0.48113343]
[1756517612231,8.779e-05,108260.0,108250.0,0.48422343]
[1756517612438,0.43424508,108260.0,108250.0,0.48113343]
[1756517612644,0.43424508,108260.0,108250.0,0.48422343]
[1756517613365,0.43424508,108260.0,108250.0,0.48113343]
[1756517615380,0.61898551,108260.0,108250.0,0.48113343]
[1756517615780,0.62196551,108260.0,108250.0,0.48113343]
[1756517616580,0.62196551,108260.0,108250.0,0.32565343]
[1756517616786,0.62196551,108260.0,108250.0,0.29436593]
[1756517617652,0.62196551,108260.0,108250.0,0.13888593]
[1756517617862,0.62196551,108260.0,108250.0,0.48113343]
[1756517618021,0.62196551,108260.0,108250.0,0.32565343]
[1756517618224,0.62196551,108260.0,108250.0,0.48113343]
[1756517619083,0.63923065,108260.0,108250.0,0.48113343]
[1756517619242,0.63923615,108260.0,108250.0,0.48113343]
[1756517620589,0.45449572,108260.0,108250.0,0.48113343]
[1756517620838,0.45450265,108260.0,108250.0,0.48113343]
[1756517621471,0.63924308,108260.0,108250.0,0.32565343]
[1756517621615,0.45450265,108260.0,108250.0,0.48113343]
[1756517622032,0.63924308,108260.0,108250.0,0.48113343]
[1756517623580,0.63626308,108260.0,108250.0,0.48113343]
[1756517624012,0.63425308,108260.0,108250.0,0.48422343]
[1756517624374,0.20210579,108260.0,108250.0,0.48422343]
[1756517624768,0.63626308,108260.0,108250.0,0.48113343]
[1756517626111,0.63924308,108260.0,108250.0,0.48113343]
[1756517626308,0.45450265,108260.0,108250.0,0.48113343]
[1756517626527,0.43722508,108260.0,108250.0,0.48113343]
[1756517626934,0.62196551,108260.0,108250.0,0.48113343]
[1756517627215,8.779e-05,108260.0,108250.0,0.48422343]
[1756517627574,0.43223508,108260.0,108250.0,0.50516225]
[1756517631176,8.779e-05,108260.0,108250.0,0.50516225]
[1756517631579,0.43223508,108260.0,108250.0,0.53292625]
[1756517632002,8.779e-05,108260.0,108250.0,0.53292625]
[1756517635935,8.779e-05,108260.0,108250.0,0.37744625]
[1756517636141,8.779e-05,108260.0,108250.0,0.53288625]
[1756517636354,8.779e-05,108260.0,108250.0,0.37744625]
[1756517636558,8.779e-05,108260.0,108250.0,0.53288625]
[1756517637737,0.43223508,108260.0,108250.0,0.53288625]
[1756517637976,0.43223508,108260.0,108250.0,0.37744625]
[1756517638204,0.43223508,108260.0,108250.0,0.53288625]
[1756517640095,0.43223508,108260.0,108250.0,0.37744625]
[1756517640301,0.43223508,108260.0,108250.0,0.53288625]
[1756517642507,8.779e-05,108260.0,108250.0,0.53288625]
[1756517642728,0.43223508,108260.0,108250.0,0.53288625]
[1756517643186,8.779e-05,108260.0,108250.0,0.68288625]
[1756517643397,8.779e-05,108260.0,108250.0,0.80952142]
[1756517643601,8.779e-05,108260.0,108250.0,0.79946243]
[1756517644526,8.779e-05,108260.0,108250.0,0.84101198]
[1756517644849,0.25172174,108270.0,108260.0,0.20567925]
[1756517645054,0.43214729,108270.0,108260.0,0.40811991]
[1756517645743,0.43214729,108270.0,108260.0,0.43588091]
[1756517646292,0.43214729,108270.0,108260.0,0.43688091]
[1756517647632,0.44555819,108280.0,108270.0,0.18472337]
[1756517647829,0.44769819,108280.0,108270.0,0.42841969]
[1756517648026,0.44769819,108280.0,108270.0,0.4770093]
[1756517648410,0.44769819,108280.0,108270.0,0.5069093]
[1756517648822,0.44769819,108280.0,108270.0,0.5047693]
[1756517652196,0.44769819,108280.0,108270.0,0.5057693]
[1756517652780,0.0155509,108280.0,108270.0,0.5079093]
[1756517652977,0.44769819,108280.0,108270.0,0.5079093]
[1756517653532,0.44769819,108280.0,108270.0,0.5057693]
[1756517654739,0.0155509,108280.0,108270.0,0.5057693]
[1756517654945,0.44769819,108280.0,108270.0,0.5057693]
[1756517655141,0.43214729,108280.0,108270.0,0.5110593]
[1756517655344,0.51166542,108290.0,108270.0,0.5110593]
[1756517655522,0.51166542,108290.0,108280.0,0.09060514]
[1756517655704,0.52392269,108290.0,108280.0,0.12611066]
[1756517656594,1.38765683,108290.0,108280.0,0.12611066]
[1756517657419,1.38957683,108290.0,108280.0,0.12611066]
[1756517657928,1.38765683,108290.0,108280.0,0.12611066]
[1756517659243,1.38765683,108290.0,108280.0,0.12711066]
[1756517665085,1.38765683,108290.0,108280.0,0.31412579]
[1756517665293,1.38765683,108290.0,108280.0,0.31181697]
[1756517665500,0.95578976,108290.0,108280.0,0.31181697]
[1756517668547,1.38765683,108290.0,108280.0,0.12711066]
[1756517671374,1.38765683,108290.0,108280.0,0.31181697]
[1756517671792,0.95578976,108290.0,108280.0,0.31488697]
[1756517671962,0.95578976,108290.0,108280.0,0.31697697]
[1756517675739,0.95578976,108290.0,108280.0,0.31488697]
[1756517675981,0.95578976,108290.0,108280.0,0.31181697]
[1756517676954,0.95578976,108290.0,108280.0,0.31697697]
[1756517677579,0.32780127,108290.0,108280.0,0.31697697]
[1756517677758,0.75966834,108290.0,108280.0,0.31697697]
[1756517677962,0.75966834,108290.0,108280.0,0.34473497]
[1756517680431,0.32780127,108290.0,108280.0,0.34473497]
[1756517680600,0.75966834,108290.0,108280.0,0.34473497]
[1756517681975,0.32780127,108290.0,108280.0,0.34473497]
[1756517682206,0.75966834,108290.0,108280.0,0.34473497]
[1756517682891,0.76164834,108290.0,108280.0,0.34473497]
[1756517684124,0.9463376,108290.0,108280.0,0.34473497]
[1756517684474,0.9463376,108290.0,108280.0,0.50005497]
[1756517686334,0.51447053,108290.0,108280.0,0.50005497]
[1756517686555,0.9463376,108290.0,108280.0,0.50005497]
[1756517687054,1.37820467,108290.0,108280.0,0.50005497]
[1756517687988,1.19153541,108290.0,108280.0,0.50005497]
[1756517688902,0.74955107,108290.0,108280.0,0.52099379]
[1756517690171,0.32762778,108290.0,108280.0,0.52099379]
[1756517690371,0.75949485,108290.0,108280.0,0.52099379]
[1756517691007,0.74955107,108290.0,108280.0,0.52099379]
[1756517694363,0.75931527,108290.0,108280.0,0.52099379]
[1756517696074,0.75931527,108290.0,108280.0,0.36567379]
[1756517696278,1.19316234,108290.0,108280.0,0.51579379]
[1756517696614,0.76129527,108290.0,108280.0,0.51579379]
[1756517696832,0.76129527,108290.0,108280.0,0.52107379]
[1756517700787,0.76129527,108290.0,108280.0,0.36579379]
[1756517701006,1.19316234,108290.0,108280.0,0.51579379]
[1756517702055,1.19316234,108290.0,108280.0,0.51899379]
[1756517702470,1.19316234,108290.0,108280.0,0.51579379]
[1756517702854,1.19316234,108290.0,108280.0,0.52107379]
[1756517706685,1.19316234,108290.0,108280.0,0.52007379]
[1756517707002,1.19316234,108290.0,108280.0,0.52107379]
[1756517707629,1.19316234,108290.0,108280.0,0.184038]
[1756517707630,1.81178867,108290.0,108280.0,0.184038]
[1756517707834,2.30706867,108290.0,108280.0,0.001]
[1756517708040,0.52470631,108280.0,108270.0,0.15528]
[1756517708252,1.97765752,108280.0,108270.0,0.15528]
[1756517708458,1.97963752,108280.0,108270.0,0.15528]
[1756517709064,0.52472337,108270.0,108260.0,0.098802]
[1756517709443,1.39052751,108270.0,108260.0,0.24357632]
[1756517709598,1.39250751,108270.0,108260.0,0.24357632]
[1756517710090,1.82437458,108270.0,108260.0,0.15528]
[1756517710291,1.39250751,108270.0,108260.0,0.15528]
[1756517711157,1.42027351,108270.0,108260.0,0.15528]
[1756517711356,1.42076365,108270.0,108260.0,0.15528]
[1756517711698,1.42076365,108270.0,108260.0,0.15628]
[1756517711910,1.57604365,108270.0,108260.0,0.15628]
[1756517712133,1.41869365,108270.0,108260.0,0.15628]
[1756517712358,0.52344192,108290.0,108270.0,0.18472337]
[1756517712684,0.88913708,108290.0,108280.0,0.33998631]
[1756517712889,0.89111708,108290.0,108280.0,0.15528]
[1756517713097,0.55111708,108290.0,108280.0,0.15528]
[1756517713475,0.89111708,108290.0,108280.0,0.19842997]
[1756517713924,1.32322922,108290.0,108280.0,0.19842997]
[1756517714534,1.32124922,108290.0,108280.0,0.4767126]
[1756517714674,1.29448722,108290.0,108280.0,0.4767126]
[1756517714886,1.29646722,108290.0,108280.0,0.4991926]
[1756517715106,1.29546722,108290.0,108280.0,0.4991926]
[1756517715420,1.29646722,108290.0,108280.0,0.4991926]
[1756517715624,1.29853722,108290.0,108280.0,0.27133632]
[1756517715962,1.29753722,108290.0,108280.0,0.27133632]
[1756517716660,1.45281722,108290.0,108280.0,0.15528]
[1756517717070,1.45281722,108290.0,108280.0,0.15628]
[1756517717418,1.45074722,108290.0,108280.0,0.15628]
[1756517718273,1.45281722,108290.0,108280.0,0.15628]
[1756517718936,1.45074722,108290.0,108280.0,0.15628]
[1756517720420,1.45281722,108290.0,108280.0,0.15628]
[1756517721655,1.45281722,108290.0,108280.0,0.001]
[1756517721871,1.90888894,108290.0,108280.0,0.001]
[1756517722294,1.93665494,108290.0,108280.0,0.001]
[1756517722869,0.18472337,108270.0,108260.0,0.22632]
[1756517723074,1.05091765,108270.0,108260.0,0.15528]
[1756517724097,1.05091765,108270.0,108260.0,0.16024]
[1756517726062,1.05091765,108270.0,108260.0,0.15826]
[1756517726247,1.05091765,108270.0,108260.0,0.16024]
[1756517726652,1.04894765,108270.0,108260.0,0.38318049]
[1756517727843,0.86422428,108270.0,108260.0,0.38318049]
[1756517728020,0.43211214,108270.0,108260.0,0.38318049]
[1756517728448,0.86422428,108270.0,108260.0,0.38318049]
[1756517728881,0.43211214,108270.0,108260.0,0.47147681]
[1756517729097,0.67665508,108290.0,108270.0,0.18472337]
[1756517729257,0.43211214,108280.0,108270.0,0.23590726]
[1756517729639,0.43211214,108280.0,108270.0,0.23788726]
[1756517729849,0.61681845,108280.0,108270.0,0.26565026]
[1756517731687,0.61681845,108280.0,108270.0,0.26665026]
[1756517732276,0.43211214,108280.0,108270.0,0.26665026]
[1756517732516,0.43211214,108280.0,108270.0,0.35494658]
[1756517733548,0.61681845,108280.0,108270.0,0.32550321]
[1756517735003,0.61681845,108280.0,108270.0,0.51022658]
[1756517736583,0.43211214,108280.0,108270.0,0.51022658]
[1756517737182,0.85213746,108290.0,108280.0,0.18470631]
[1756517737424,1.2842496,108290.0,108280.0,0.22786637]
[1756517737990,1.2842496,108290.0,108280.0,0.25562737]
[1756517739728,1.28630775,108290.0,108280.0,0.25562737]
[1756517740130,1.28630775,108290.0,108280.0,0.41090737]
[1756517741563,1.09964849,108290.0,108280.0,0.41090737]
[1756517742016,0.32753635,108290.0,108280.0,0.49920369]
[1756517742252,0.75964849,108290.0,108280.0,0.49920369]
[1756517743497,0.75964849,108290.0,108280.0,0.52014251]
[1756517743498,0.74988429,108290.0,108280.0,0.52014251]
[1756517745545,0.7674455,108290.0,108280.0,0.36486251]
[1756517745779,0.7674455,108290.0,108280.0,0.52014251]
[1756517745984,0.7674455,108290.0,108280.0,0.52114251]
[1756517746623,0.7674455,108290.0,108280.0,0.36586251]
[1756517746798,0.7694155,108290.0,108280.0,0.51618251]
[1756517747005,0.7694155,108290.0,108280.0,0.52114251]
[1756517747205,0.7674455,108290.0,108280.0,0.52114251]
[1756517750428,0.33533336,108290.0,108280.0,0.52114251]
[1756517750630,0.74988429,108290.0,108280.0,0.52114251]
[1756517758681,0.31777215,108290.0,108280.0,0.52114251]
[1756517758882,0.31777215,108290.0,108280.0,0.59214251]
[1756517759323,0.31777215,108290.0,108280.0,0.61034553]
[1756517759730,0.31777215,108290.0,108280.0,0.59214251]
[1756517760851,0.31777215,108290.0,108280.0,0.43686251]
[1756517761051,0.31777215,108290.0,108280.0,0.59210251]
[1756517761377,0.31777215,108290.0,108280.0,0.43686251]
[1756517761582,0.74988429,108290.0,108280.0,0.59210251]
[1756517765516,0.51256574,108290.0,108280.0,0.59210251]
[1756517766153,0.51256574,108290.0,108280.0,0.43686251]
[1756517766361,0.51256574,108290.0,108280.0,0.59210251]
[1756517766618,0.0804536,108290.0,108280.0,0.59210251]
[1756517766834,0.51256574,108290.0,108280.0,0.59210251]
[1756517770337,0.51256574,108290.0,108280.0,0.43686251]
[1756517770565,0.51256574,108290.0,108280.0,0.59210251]
[1756517772087,0.51454574,108290.0,108280.0,0.54894245]
[1756517772299,0.701305,108290.0,108280.0,0.099761]
[1756517772506,0.701305,108290.0,108280.0,0.15624]
[1756517772716,1.13341714,108290.0,108280.0,0.15624]
[1756517772918,0.701305,108290.0,108280.0,0.15624]
[1756517773137,1.0640275,108290.0,108280.0,0.001]
[1756517773346,1.47341714,108290.0,108280.0,0.001]
[1756517773762,0.18470631,108280.0,108270.0,0.15524]
[1756517773965,1.05298059,108280.0,108270.0,0.15524]
[1756517774447,0.18472337,108270.0,108260.0,0.071]
[1756517774672,1.05099765,108270.0,108260.0,0.49927675]
[1756517775991,1.05099765,108270.0,108260.0,0.08829632]
[1756517776193,0.18474043,108260.0,108250.0,0.027763]
[1756517776435,0.61885257,108260.0,108250.0,0.24353632]
[1756517776632,0.62090257,108260.0,108250.0,0.24353632]
[1756517777422,0.61890257,108260.0,108250.0,0.24353632]
[1756517778329,0.61890257,108260.0,108250.0,0.24453632]
[1756517779282,0.61890257,108260.0,108250.0,0.08929632]
[1756517779506,0.61890257,108260.0,108250.0,0.28304089]
[1756517779708,0.62090257,108260.0,108250.0,0.12780089]
[1756517779917,0.62090257,108260.0,108250.0,0.24457632]
[1756517780484,0.18879043,108260.0,108250.0,0.001]
[1756517780749,0.96090257,108260.0,108250.0,0.15624]
[1756517781571,0.96090257,108260.0,108250.0,0.15524]
[1756517783661,1.11614257,108260.0,108250.0,0.15524]
[1756517785543,0.1847575,108250.0,108240.0,0.22628]
[1756517785748,0.61888964,108250.0,108240.0,0.31669632]
[1756517785955,0.61888964,108250.0,108240.0,0.37585986]
[1756517786212,0.61888964,108250.0,108240.0,0.56063443]
[1756517786790,0.61888964,108250.0,108240.0,0.56110991]
[1756517786997,0.61888964,108250.0,108240.0,0.56210991]
[1756517789441,0.00202,108250.0,108240.0,0.56210991]
[1756517789644,0.43413214,108250.0,108240.0,0.56210991]
[1756517789906,0.61888964,108250.0,108240.0,0.56210991]
[1756517791516,0.61888964,108250.0,108240.0,0.56110991]
[1756517791725,0.61888964,108250.0,108240.0,0.56310991]
[1756517793536,0.61888964,108250.0,108240.0,0.33682991]
[1756517793734,0.61888964,108250.0,108240.0,0.49210991]
[1756517793978,0.61888964,108250.0,108240.0,0.15205534]
[1756517794186,0.61888964,108250.0,108240.0,0.30733534]
[1756517794830,0.61888964,108250.0,108240.0,0.49210991]
[1756517795589,0.77416964,108250.0,108240.0,0.00247548]
[1756517795792,1.20628178,108250.0,108240.0,0.15775548]
[1756517796022,1.54831178,108250.0,108240.0,0.00247548]
[1756517796403,1.54831178,108250.0,108240.0,0.00047548]
[1756517796604,1.54831178,108250.0,108240.0,0.00147548]
[1756517797065,1.54831178,108250.0,108240.0,0.00047548]
[1756517799332,1.56551451,108250.0,108240.0,0.00047548]
[1756517801643,1.56146451,108250.0,108240.0,0.00047548]
[1756517801963,1.56155451,108250.0,108240.0,0.00047548]
[1756517804140,1.56158884,108250.0,108240.0,0.00047548]
[1756517805146,1.56158884,108250.0,108240.0,0.19059005]
[1756517805147,1.1293867,108250.0,108240.0,0.19059005]
[1756517805350,0.9741067,108250.0,108240.0,0.19059005]
[1756517805510,0.9741067,108250.0,108240.0,0.2436561]
[1756517805916,0.9741067,108250.0,108240.0,0.05888153]
[1756517806684,0.9741967,108250.0,108240.0,0.00369548]
[1756517806924,0.9741967,108250.0,108240.0,0.00047548]
[1756517807338,1.1294767,108250.0,108240.0,0.00047548]
[1756517809207,0.9741967,108250.0,108240.0,0.00047548]
[1756517809407,1.1294767,108250.0,108240.0,0.00047548]
[1756517811231,1.12949839,108250.0,108240.0,0.00047548]
[1756517813653,1.12949839,108250.0,108240.0,0.00367548]
[1756517814663,1.11223964,108250.0,108240.0,0.00367548]
[1756517814871,1.12949601,108250.0,108240.0,0.00367548]
[1756517815911,0.69729387,108250.0,108240.0,0.00578548]
[1756517816123,1.12940601,108250.0,108240.0,0.00578548]
[1756517817484,1.12940601,108250.0,108240.0,0.19056005]
[1756517817689,1.12940601,108250.0,108240.0,0.22809512]
[1756517818359,1.12940601,108250.0,108240.0,0.04332055]
[1756517820991,1.11214964,108250.0,108240.0,0.04332055]
[1756517821661,1.11214964,108250.0,108240.0,0.00578548]
[1756517822117,1.11223964,108250.0,108240.0,0.00047548]
[1756517822352,1.12955271,108250.0,108240.0,0.00047548]
[1756517822571,1.12950271,108250.0,108240.0,0.00047548]
[1756517823173,0.97422271,108250.0,108240.0,0.00047548]
[1756517823390,1.12950271,108250.0,108240.0,0.00047548]
[1756517824046,1.12950592,108250.0,108240.0,0.00047548]
[1756517824911,0.97422592,108250.0,108240.0,0.00047548]
[1756517825125,1.12950592,108250.0,108240.0,0.00147548]
[1756517825555,1.11223964,108250.0,108240.0,0.00147548]
[1756517827609,0.95695964,108250.0,108240.0,0.00147548]
[1756517827817,1.11223964,108250.0,108240.0,0.00467548]
[1756517828212,1.11223964,108250.0,108240.0,0.00147548]
[1756517828416,1.54440178,108250.0,108240.0,0.00147548]
[1756517828618,1.64996605,108250.0,108240.0,0.00147548]
[1756517828988,1.68063511,108250.0,108240.0,0.00147548]
[1756517829399,1.68063511,108250.0,108240.0,0.00047548]
[1756517829577,1.70698795,108250.0,108240.0,0.00047548]
[1756517829790,1.79528427,108250.0,108240.0,0.00047548]
[1756517830422,1.76893143,108250.0,108240.0,0.00047548]
[1756517831879,1.77093143,108250.0,108240.0,0.00047548]
[1756517834544,1.75077142,108250.0,108240.0,0.00047548]
[1756517834916,1.77089906,108250.0,108240.0,0.00047548]
[1756517835481,1.52727274,108250.0,108240.0,0.00047548]
[1756517835669,1.5243804,108250.0,108240.0,0.00047548]
[1756517836022,1.06449126,108250.0,108240.0,0.00578548]
[1756517836227,1.21977126,108250.0,108240.0,0.00578548]
[1756517836469,1.22347426,108250.0,108240.0,0.00578548]
[1756517836648,1.20623896,108250.0,108240.0,0.00578548]
[1756517837463,1.20253596,108250.0,108240.0,0.00578548]
[1756517837694,1.11414964,108250.0,108240.0,0.00578548]
[1756517839454,1.11214964,108250.0,108240.0,0.00578548]
[1756517841159,1.11314964,108250.0,108240.0,0.00578548]
[1756517841388,0.5257575,108250.0,108240.0,0.00578548]
[1756517841575,1.11323964,108250.0,108240.0,0.00578548]
[1756517841778,1.19728147,108250.0,108240.0,0.00578548]
[1756517842497,1.11323964,108250.0,108240.0,0.00578548]
[1756517842921,1.11314964,108250.0,108240.0,0.00578548]
[1756517844050,1.11323964,108250.0,108240.0,0.00367548]
[1756517845423,1.11323964,108250.0,108240.0,0.00576548]
[1756517848317,1.11323964,108250.0,108240.0,0.00367548]
[1756517848535,1.20153596,108250.0,108240.0,0.00047548]
[1756517851479,1.11323964,108250.0,108240.0,0.00349548]
[1756517852089,0.6810875,108250.0,108240.0,0.00558548]
[1756517852303,1.11319964,108250.0,108240.0,0.00558548]
[1756517852918,1.11319964,108250.0,108240.0,0.00349548]
[1756517853573,0.77319964,108250.0,108240.0,0.00349548]
[1756517856044,1.11319964,108250.0,108240.0,0.00349548]
[1756517857201,1.11319964,108250.0,108240.0,0.00558548]
[1756517857606,0.6810875,108250.0,108240.0,0.00558548]
[1756517857813,1.11319964,108250.0,108240.0,0.00558548]
[1756517863766,1.11319964,108250.0,108240.0,0.00349548]
[1756517865020,1.11319964,108250.0,108240.0,0.00558548]
[1756517867215,0.6810875,108250.0,108240.0,0.00558548]
[1756517867614,1.11319964,108250.0,108240.0,0.00558548]
[1756517867810,1.11319964,108250.0,108240.0,0.00349548]
[1756517868390,1.13047673,108250.0,108240.0,0.00349548]
[1756517869964,1.11319964,108250.0,108240.0,0.00349548]
[1756517870164,1.13047858,108250.0,108240.0,0.00349548]
[1756517871395,1.56280316,108250.0,108240.0,0.00349548]
[1756517872001,1.56280316,108250.0,108240.0,0.00555548]
[1756517872613,1.40756316,108250.0,108240.0,0.00555548]
[1756517872823,1.56280316,108250.0,108240.0,0.00555548]
[1756517873050,1.56180316,108250.0,108240.0,0.00555548]
[1756517876994,1.54452422,108250.0,108240.0,0.00555548]
[1756517877227,1.56180793,108250.0,108240.0,0.00555548]
[1756517877609,1.56180568,108250.0,108240.0,0.00555548]
[1756517878534,1.56180568,108250.0,108240.0,0.00349548]
[1756517878805,1.56180568,108250.0,108240.0,0.00555548]
[1756517880415,1.56180568,108250.0,108240.0,0.00349548]
[1756517880760,1.56180568,108250.0,108240.0,0.00555548]
[1756517881163,1.56180568,108250.0,108240.0,0.00349548]
[1756517881375,1.650102,108250.0,108240.0,0.00047548]
[1756517882220,1.56180568,108250.0,108240.0,0.00567548]
[1756517882420,1.38919422,108250.0,108240.0,0.00567548]
[1756517882621,0.6799975,108250.0,108240.0,0.00567548]
[1756517882843,1.11221586,108250.0,108240.0,0.00567548]
[1756517883034,1.54443422,108250.0,108240.0,0.00567548]
[1756517883648,1.11221586,108250.0,108240.0,0.00567548]
[1756517884393,1.11217586,108250.0,108240.0,0.00567548]
[1756517885987,1.54439422,108250.0,108240.0,0.00567548]
[1756517887518,1.38919422,108250.0,108240.0,0.00567548]
[1756517887750,1.54439422,108250.0,108240.0,0.00567548]
[1756517890038,0.5247575,108250.0,108240.0,0.00567548]
[1756517890236,1.54439422,108250.0,108240.0,0.00567548]
[1756517890474,1.54448422,108250.0,108240.0,0.00567548]
[1756517894009,1.54439422,108250.0,108240.0,0.00567548]
[1756517894324,1.54448422,108250.0,108240.0,0.00567548]
[1756517896835,1.54439422,108250.0,108240.0,0.00567548]
[1756517897393,1.54448422,108250.0,108240.0,0.00567548]
[1756517898012,0.43221836,108250.0,108240.0,0.19045005]
[1756517898359,0.61697586,108250.0,108240.0,0.0939718]
[1756517898556,0.40577979,108250.0,108240.0,0.0939718]
[1756517898756,0.61697586,108250.0,108240.0,0.0939718]
[1756517900173,0.77217586,108250.0,108240.0,0.0939718]
[1756517904352,0.77217586,108250.0,108240.0,0.27874637]
[1756517904763,0.77217586,108250.0,108240.0,0.34339706]
[1756517905795,0.77217586,108250.0,108240.0,0.27874637]
[1756517907578,0.77217586,108250.0,108240.0,0.27974637]
[1756517908814,0.55117793,108250.0,108240.0,0.27974637]
[1756517908997,0.73593543,108250.0,108240.0,0.27974637]
[1756517910163,0.58073543,108250.0,108240.0,0.27974637]
[1756517911236,0.58073543,108250.0,108240.0,0.34449706]
[1756517911496,0.61697586,108250.0,108240.0,0.34449706]